[Event "Schachfestival GM 2018"]
[Site "Lueneburg"]
[Date "2018.07.07"]
[Round "3"]
[White "Pubantz, Jan"]
[Black "Light, Bjarne"]
[Result "0-1"]
[ECO "A40"]
[WhiteElo "1997"]
[BlackElo "2177"]
[Annotator "NA"]
[PlyCount "108"]
[EventDate "2018.07.05"]
[EventType "tourn"]
[EventCountry "GER"]
[SourceTitle "playchess.com"]
[Source "ChessBase"]
[SourceQuality "1"]
[TimeControl "40/5400+30:1800+30"]

1. d4 {[%emt 0:00:00]} e6 {[%emt 0:00:00]} 2. c4 {[%emt 0:00:00]} b6 {[%emt 0:00:00]} 3. e4 {[%emt 0:11:45]} Bb7 {[%emt 0:00:02]} 4. Nc3 {[%emt 0:01:45]} Bb4 {[%emt 0:00:05]} 5. Bd3 {[%emt 0:08:14]} f5 {[%emt 0:01:50]} 6. d5 {[%emt 0:13:12]} fxe4 {[%emt 0:06:58]} 7. Bxe4 {[%emt 0:00:40]} Nf6 {[%emt 0:00:12]} 8. Bf3 {[%emt 0:02:09]} Bxc3+ {[%emt 0:04:08]} 9. bxc3 {[%emt 0:00:12]} e5 {[%emt 0:00:08]} 10. g3 {[%emt 0:10:45]} O-O {[%emt 0:03:52]} 11. Nh3 {[%emt 0:04:52]} h6 {[%emt 0:06:58]} 12. O-O {[%emt 0:00:27]} d6 {[%emt 0:00:28]} 13. Bg2 {[%emt 0:06:19]} Ba6 {[%emt 0:06:07]} 14. f4 {[%emt 0:06:26]} Bxc4 {[%emt 0:04:42]} 15. Re1 {[%emt 0:00:17]} Nbd7 {[%emt 0:07:10]} 16. g4 {[%emt 0:07:54]} Nh7 {[%emt 0:12:09]} 17. g5 {[%emt 0:03:47]} hxg5 {[%emt 0:03:47]} 18. fxg5 {[%emt 0:00:08]} g6 {[%emt 0:02:02]} 19. Be4 {[%emt 0:03:16]} Kg7 {[%emt 0:00:48]} 20. Qg4 {[%emt 0:01:00]} Rh8 {[%emt 0:10:43]} 21. Bxg6 {[%emt 0:05:22]} Bxd5 {[%emt 0:01:24]} 22. Bf5 {[%emt 0:01:16]} Nhf8 {[%emt 0:01:50]} 23. Nf2 {[%emt 0:01:17]} Nc5 {[%emt 0:03:22]} 24. h4 {[%emt 0:03:36]} Qe8 {[%emt 0:14:55]} 25. g6 {[%emt 0:00:22]} Be6 {[%emt 0:00:11]} 26. h5 {[%emt 0:00:35]} Bxf5 {[%emt 0:00:20]} 27. Qxf5 {[%emt 0:01:02]} Qe6 {[%emt 0:00:21]} 28. Qg5 {[%emt 0:02:54]} Nxg6 {[%emt 0:02:59]} 29. Ng4 {[%emt 0:01:23]} Raf8 {[%emt 0:00:50]} 30. Qxg6+ {[%emt 0:03:27]} Qxg6 {[%emt 0:00:10]} 31. hxg6 {[%emt 0:00:06]} Kxg6 {[%emt 0:00:38]} 32. Be3 {[%emt 0:00:50]} Rh4 {[%emt 0:01:14]} 33. Nf2 {[%emt 0:00:18]} Na4 {[%emt 0:01:01]} 34. Rac1 {[%emt 0:00:41]} Rc4 {[%emt 0:00:23]} 35. Bd2 {[%emt 0:00:32]} Nc5 {[%emt 0:01:34]} 36. Re3 {[%emt 0:00:31]} Rf5 {[%emt 0:01:20]} 37. Kg2 {[%emt 0:00:33]} Ne6 {[%emt 0:01:15]} 38. Rg3+ {[%emt 0:00:19]} Kf7 {[%emt 0:00:41]} 39. Rh1 {[%emt 0:00:34]} Nf4+ {[%emt 0:01:17]} 40. Kf1 {[%emt 0:00:40]} Ke6 {[%emt 0:00:51]} 41. Rf3 {[%emt 0:11:06]} Ra4 {[%emt 0:03:11]} 42. Nd3 {[%emt 0:02:27]} Rxa2 {[%emt 0:01:58]} 43. Bxf4 {[%emt 0:07:51]} Ra1+ {[%emt 0:03:26]} 44. Kg2 {[%emt 0:00:17]} Rxh1 {[%emt 0:00:05]} 45. Kxh1 {[%emt 0:00:23]} exf4 {[%emt 0:03:03]} 46. Kg2 {[%emt 0:04:58]} Kd5 {[%emt 0:02:47]} 47. Nxf4+ {[%emt 0:00:57]} Kc4 {[%emt 0:00:25]} 48. Kg3 {[%emt 0:01:58]} a5 {[%emt 0:00:49]} 49. Re3 {[%emt 0:01:33]} Re5 {[%emt 0:00:34]} 50. Rf3 {[%emt 0:00:20]} a4 {[%emt 0:01:14]} 51. Nd3 {[%emt 0:00:27]} Re2 {[%emt 0:01:51]} 52. Nc1 {[%emt 0:01:40]} Rc2 {[%emt 0:00:58]} 53. Nd3 {[%emt 0:01:35]} a3 {[%emt 0:01:32]} 54. Ne1 {[%emt 0:01:07]} Rxc3 {[%emt 0:00:11]} 0-1